Workbook

Sheet Sheet1
A1: 지점별 상품 판매 현황
A3: 판매일자 | B3: 지점 | C3: 구분 | D3: 분류 | E3: 상품명 | F3: 사이즈 | G3: 생산일자 | H3: 단가 | I3: 할인율 | J3: 판매액 | K3: 재고량 | L3: 재고금액
A4: 2015-01-03 | B4: 대구지점 | C4: 여성화 | D4: 플렛슈즈 | E4: 골지 리본 코사지 슈즈 | F4: 230 | G4: 2010-03-02 | H4: 79000 | I4: 0.2 | J4: =H4*(1-I4) -> 63200 | K4: 7 | L4: =K4*H4*(1-I4) -> 442400
A5: 2015-01-03 | B5: 광주지점 | C5: 여성화 | D5: 플렛슈즈 | E5: 골지 리본 코사지 슈즈 | F5: 230 | G5: 2010-03-02 | H5: 79000 | I5: 0.2 | J5: =H5*(1-I5) -> 63200 | K5: 20 | L5: =K5*H5*(1-I5) -> 1264000
A6: 2015-01-03 | B6: 서울지점 | C6: 남성화 | D6: 정장구두 | E6: 메탈버틀 슬립온 | F6: 290 | G6: 2010-02-26 | H6: 215000 | I6: 0.3 | J6: 150500 | K6: 2 | L6: =K6*H6*(1-I6) -> 301000
A7: 2015-01-05 | B7: 경기지점 | C7: 남성화 | D7: 정장구두 | E7: 메탈버틀 슬립온 | F7: 275 | G7: 2012-05-12 | H7: 215000 | I7: 0.3 | J7: 150500 | K7: 60 | L7: =K7*H7*(1-I7) -> 9030000
A8: 2015-01-08 | B8: 경기지점 | C8: 남성화 | D8: 스니커즈 | E8: 프레미엄 패션화 | F8: 290 | G8: 2010-01-03 | H8: 234000 | I8: 0.05 | J8: 222300 | K8: 1 | L8: =K8*H8*(1-I8) -> 222300
A9: 2015-01-09 | B9: 서울지점 | C9: 남성화 | D9: 부츠 | E9: 벨트 장식 워커 | F9: 290 | G9: 2012-01-23 | H9: 168200 | I9: 0.2 | J9: 134560 | K9: 8 | L9: =K9*H9*(1-I9) -> 1076480
A10: 2015-01-11 | B10: 경기지점 | C10: 남성화 | D10: 로퍼 | E10: 천연소가죽 로퍼 | F10: 260 | G10: 2012-08-13 | H10: 178000 | I10: 0.2 | J10: 142400 | K10: 40 | L10: =K10*H10*(1-I10) -> 5696000
A11: 2015-01-12 | B11: 경기지점 | C11: 여성화 | D11: 샌들 | E11: 오픈 펌프스 샌들 | F11: 225 | G11: 2009-07-10 | H11: 118000 | I11: 0.3 | J11: 82600 | K11: 10 | L11: =K11*H11*(1-I11) -> 826000
A12: 2015-01-13 | B12: 부산지점 | C12: 남성화 | D12: 부츠 | E12: 벨트 장식 워커 | F12: 260 | G12: 2012-05-22 | H12: 168200 | I12: 0.2 | J12: 134560 | K12: 2 | L12: =K12*H12*(1-I12) -> 269120
A13: 2015-01-14 | B13: 대전지점 | C13: 남성화 | D13: 부츠 | E13: 벨트 장식 워커 | F13: 270 | G13: 2011-07-23 | H13: 168200 | I13: 0.2 | J13: 134560 | K13: 8 | L13: =K13*H13*(1-I13) -> 1076480
A14: 2015-01-15 | B14: 대전지점 | C14: 남성화 | D14: 부츠 | E14: 벨트 장식 워커 | F14: 225 | G14: 2011-03-05 | H14: 168200 | I14: 0.1 | J14: 151380 | K14: 1 | L14: =K14*H14*(1-I14) -> 151380
A15: 2015-01-15 | B15: 경기지점 | C15: 남성화 | D15: 정장구두 | E15: 토 포인트 옥스포드 | F15: 270 | G15: 2010-11-17 | H15: 156000 | I15: 0.05 | J15: 148200 | K15: 50 | L15: =K15*H15*(1-I15) -> 7410000
A16: 2015-01-15 | B16: 부산지점 | C16: 남성화 | D16: 스니커즈 | E16: 프리뉴 화이트 스니커즈 | F16: 280 | G16: 2010-01-03 | H16: 174000 | I16: 0 | J16: 174000 | K16: 3 | L16: =K16*H16*(1-I16) -> 522000
A17: 2015-01-16 | B17: 경기지점 | C17: 남성화 | D17: 부츠 | E17: 벨트 장식 워커 | F17: 230 | G17: 2010-08-12 | H17: 168200 | I17: 0.1 | J17: 151380 | K17: 1 | L17: =K17*H17*(1-I17) -> 151380
A18: 2015-01-17 | B18: 서울지점 | C18: 남성화 | D18: 부츠 | E18: 벨트 장식 워커 | F18: 250 | G18: 2009-05-05 | H18: 168200 | I18: 0.1 | J18: 151380 | K18: 1 | L18: =K18*H18*(1-I18) -> 151380
A19: 2015-01-18 | B19: 울산지점 | C19: 남성화 | D19: 부츠 | E19: 벨트 장식 워커 | F19: 230 | G19: 2012-01-23 | H19: 168200 | I19: 0.1 | J19: 151380 | K19: 1 | L19: =K19*H19*(1-I19) -> 151380
A20: 2015-01-18 | B20: 경기지점 | C20: 남성화 | D20: 정장구두 | E20: 크로커 콤비 트랜디 | F20: 285 | G20: 2011-05-02 | H20: 184000 | I20: 0.05 | J20: 174800 | K20: 45 | L20: =K20*H20*(1-I20) -> 7866000
A21: 2015-01-19 | B21: 광주지점 | C21: 남성화 | D21: 부츠 | E21: 벨트 장식 워커 | F21: 260 | G21: 2011-12-04 | H21: 168200 | I21: 0.1 | J21: 151380 | K21: 1 | L21: =K21*H21*(1-I21) -> 151380
A22: 2015-01-21 | B22: 경기지점 | C22: 남성화 | D22: 스니커즈 | E22: 캐주얼 캔버스화 | F22: 275 | G22: 2011-05-02 | H22: 87000 | I22: 0.13 | J22: 75690 | K22: 10 | L22: =K22*H22*(1-I22) -> 756900
A23: 2015-01-24 | B23: 대구지점 | C23: 여성화 | D23: 샌들 | E23: 오픈 펌프스 샌들 | F23: 230 | G23: 2009-03-05 | H23: 118000 | I23: 0.3 | J23: 82600 | K23: 10 | L23: =K23*H23*(1-I23) -> 826000
A24: 2015-01-25 | B24: 대구지점 | C24: 여성화 | D24: 샌들 | E24: 오픈 펌프스 샌들 | F24: 230 | G24: 2009-03-05 | H24: 118000 | I24: 0.3 | J24: 82600 | K24: 10 | L24: =K24*H24*(1-I24) -> 826000
A25: 2015-01-27 | B25: 대구지점 | C25: 여성화 | D25: 로퍼 | E25: 토오픈 캐쥬얼 로퍼 | F25: 240 | G25: 2011-03-10 | H25: 134000 | I25: 0.3 | J25: 93800 | K25: 10 | L25: =K25*H25*(1-I25) -> 938000
A26: 2015-01-30 | B26: 대구지점 | C26: 여성화 | D26: 플렛슈즈 | E26: 골지 리본 코사지 슈즈 | F26: 230 | G26: 2010-03-02 | H26: 79000 | I26: 0.2 | J26: 63200 | K26: 70 | L26: =K26*H26*(1-I26) -> 4424000
A27: 2015-01-30 | B27: 울산지점 | C27: 여성화 | D27: 정장구두 | E27: 웨지힐 베이직슈즈 | F27: 225 | G27: 2011-11-01 | H27: 65400 | I27: 0 | J27: 65400 | K27: 5 | L27: =K27*H27*(1-I27) -> 327000
A28: 2015-02-01 | B28: 대구지점 | C28: 여성화 | D28: 플렛슈즈 | E28: 보석장식 옆주름 슈즈 | F28: 225 | G28: 2010-06-07 | H28: 56000 | I28: 0.3 | J28: 39200 | K28: 8 | L28: =K28*H28*(1-I28) -> 313600
A29: 2015-02-01 | B29: 부산지점 | C29: 여성화 | D29: 플렛슈즈 | E29: 보석장식 옆주름 슈즈 | F29: 225 | G29: 2010-06-07 | H29: 56000 | I29: 0.3 | J29: 39200 | K29: 5 | L29: =K29*H29*(1-I29) -> 196000
A30: 2015-02-01 | B30: 서울지점 | C30: 남성화 | D30: 샌들 | E30: 스포츠 샌들 | F30: 290 | G30: 2012-01-23 | H30: 98200 | I30: 0.2 | J30: 78560 | K30: 8 | L30: =K30*H30*(1-I30) -> 628480
A31: 2015-02-02 | B31: 대구지점 | C31: 여성화 | D31: 플렛슈즈 | E31: 보석장식 옆주름 슈즈 | F31: 225 | G31: 2010-06-07 | H31: 56000 | I31: 0.3 | J31: 39200 | K31: 0 | L31: =K31*H31*(1-I31) -> 0
A32: 2015-02-03 | B32: 서울지점 | C32: 남성화 | D32: 정장구두 | E32: 메탈버틀 슬립온 | F32: 290 | G32: 2010-02-26 | H32: 215000 | I32: 0.03 | J32: 208550 | K32: 2 | L32: =K32*H32*(1-I32) -> 417100
A33: 2015-02-05 | B33: 대구지점 | C33: 여성화 | D33: 부츠 | E33: 웨스턴 부츠 | F33: 245 | G33: 2011-05-10 | H33: 67800 | I33: 0.15 | J33: 57630 | K33: 80 | L33: =K33*H33*(1-I33) -> 4610400
A34: 2015-02-08 | B34: 대구지점 | C34: 여성화 | D34: 정장구두 | E34: 웨지힐 베이직슈즈 | F34: 240 | G34: 2011-02-01 | H34: 65400 | I34: 0.15 | J34: 55590 | K34: 45 | L34: =K34*H34*(1-I34) -> 2501550
A35: 2015-02-11 | B35: 대구지점 | C35: 여성화 | D35: 부츠 | E35: 소호버클부츠 | F35: 250 | G35: 2012-08-09 | H35: 64000 | I35: 0 | J35: 64000 | K35: 40 | L35: =K35*H35*(1-I35) -> 2560000
A36: 2015-02-11 | B36: 대전지점 | C36: 남성화 | D36: 스니커즈 | E36: 프리뉴 화이트 스니커즈 | F36: 280 | G36: 2010-01-03 | H36: 174000 | I36: 0 | J36: 174000 | K36: 3 | L36: =K36*H36*(1-I36) -> 522000
A37: 2015-02-12 | B37: 광주지점 | C37: 남성화 | D37: 부츠 | E37: 벨트 장식 워커 | F37: 280 | G37: 2011-12-04 | H37: 168200 | I37: 0.2 | J37: 134560 | K37: 1 | L37: =K37*H37*(1-I37) -> 134560
A38: 2015-02-14 | B38: 대구지점 | C38: 여성화 | D38: 정장구두 | E38: 토오픈힐 슈즈 | F38: 235 | G38: 2010-01-03 | H38: 39800 | I38: 0.3 | J38: 27860 | K38: 80 | L38: =K38*H38*(1-I38) -> 2228800
A39: 2015-02-17 | B39: 부산지점 | C39: 여성화 | D39: 부츠 | E39: 소호 버클 부츠 | F39: 255 | G39: 2011-08-02 | H39: 64000 | I39: 0.1 | J39: 57600 | K39: 70 | L39: =K39*H39*(1-I39) -> 4032000
A40: 2015-02-20 | B40: 부산지점 | C40: 남성화 | D40: 정장구두 | E40: 크로커 콤비 트랜디 | F40: 260 | G40: 2012-08-15 | H40: 184000 | I40: 0.2 | J40: 147200 | K40: 40 | L40: =K40*H40*(1-I40) -> 5888000
A41: 2015-02-23 | B41: 부산지점 | C41: 남성화 | D41: 정장구두 | E41: 토 포인트 옥스포드 | F41: 290 | G41: 2010-06-07 | H41: 156000 | I41: 0.3 | J41: 109200 | K41: 0 | L41: =K41*H41*(1-I41) -> 0
A42: 2015-02-23 | B42: 대전지점 | C42: 여성화 | D42: 샌들 | E42: 오픈 펌프스 샌들 | F42: 230 | G42: 2009-03-05 | H42: 118000 | I42: 0.3 | J42: 82600 | K42: 10 | L42: =K42*H42*(1-I42) -> 826000
A43: 2015-02-26 | B43: 부산지점 | C43: 남성화 | D43: 스니커즈 | E43: 프레미엄 패션화 | F43: 280 | G43: 2010-01-03 | H43: 234000 | I43: 0 | J43: 234000 | K43: 0 | L43: =K43*H43*(1-I43) -> 0
A44: 2015-02-26 | B44: 부산지점 | C44: 남성화 | D44: 정장구두 | E44: 메탈버틀 슬립온 | F44: 290 | G44: 2010-02-26 | H44: 215000 | I44: 0.03 | J44: 208550 | K44: 2 | L44: =K44*H44*(1-I44) -> 417100
A45: 2015-02-28 | B45: 부산지점 | C45: 여성화 | D45: 로퍼 | E45: 토오픈 캐쥬얼 로퍼 | F45: 250 | G45: 2011-03-05 | H45: 134000 | I45: 0.1 | J45: 120600 | K45: 100 | L45: =K45*H45*(1-I45) -> 12060000
A46: 2015-02-28 | B46: 광주지점 | C46: 남성화 | D46: 샌들 | E46: 스포츠 샌들 | F46: 280 | G46: 2011-12-04 | H46: 98200 | I46: 0.2 | J46: 78560 | K46: 1 | L46: =K46*H46*(1-I46) -> 78560
A47: 2015-03-01 | B47: 서울지점 | C47: 여성화 | D47: 플렛슈즈 | E47: 골지 리본 코사지 슈즈 | F47: 230 | G47: 2010-03-02 | H47: 79000 | I47: 0.2 | J47: 63200 | K47: 5 | L47: =K47*H47*(1-I47) -> 316000
A48: 2015-03-01 | B48: 울산지점 | C48: 여성화 | D48: 정장구두 | E48: 웨지힐 베이직슈즈 | F48: 225 | G48: 2011-11-01 | H48: 65400 | I48: 0 | J48: 65400 | K48: 5 | L48: =K48*H48*(1-I48) -> 327000
A49: 2015-03-02 | B49: 경기지점 | C49: 남성화 | D49: 로퍼 | E49: 천연소가죽 로퍼 | F49: 260 | G49: 2011-03-05 | H49: 178000 | I49: 0.2 | J49: 142400 | K49: 5 | L49: =K49*H49*(1-I49) -> 712000
A50: 2015-03-03 | B50: 부산지점 | C50: 남성화 | D50: 정장구두 | E50: 토 포인트 옥스포드 | F50: 265 | G50: 2011-04-05 | H50: 156000 | I50: 0.05 | J50: 148200 | K50: 10 | L50: =K50*H50*(1-I50) -> 1482000
A51: 2015-03-06 | B51: 부산지점 | C51: 남성화 | D51: 정장구두 | E51: 메탈버틀 슬립온 | F51: 270 | G51: 2010-05-27 | H51: 215000 | I51: 0.05 | J51: 204250 | K51: 1 | L51: =K51*H51*(1-I51) -> 204250
A52: 2015-03-09 | B52: 서울지점 | C52: 여성화 | D52: 샌들 | E52: 오픈 펌프스 샌들 | F52: 225 | G52: 2012-07-05 | H52: 118000 | I52: 0.1 | J52: 106200 | K52: 40 | L52: =K52*H52*(1-I52) -> 4248000
A53: 2015-03-09 | B53: 서울지점 | C53: 남성화 | D53: 스니커즈 | E53: 프리뉴 화이트 스니커즈 | F53: 280 | G53: 2010-01-03 | H53: 174000 | I53: 0 | J53: 174000 | K53: 3 | L53: =K53*H53*(1-I53) -> 522000
A54: 2015-03-12 | B54: 서울지점 | C54: 남성화 | D54: 정장구두 | E54: 크로커 콤비 트랜디 | F54: 270 | G54: 2009-12-05 | H54: 184000 | I54: 0.1 | J54: 165600 | K54: 10 | L54: =K54*H54*(1-I54) -> 1656000
A55: 2015-03-15 | B55: 서울지점 | C55: 여성화 | D55: 로퍼 | E55: 토오픈 캐쥬얼 로퍼 | F55: 225 | G55: 2010-09-10 | H55: 134000 | I55: 0.35 | J55: 87100 | K55: 3 | L55: =K55*H55*(1-I55) -> 261300
A56: 2015-03-15 | B56: 부산지점 | C56: 남성화 | D56: 부츠 | E56: 벨트 장식 워커 | F56: 260 | G56: 2012-05-22 | H56: 168200 | I56: 0.2 | J56: 134560 | K56: 2 | L56: =K56*H56*(1-I56) -> 269120
A57: 2015-03-18 | B57: 서울지점 | C57: 남성화 | D57: 스니커즈 | E57: 프레미엄 패션화 | F57: 285 | G57: 2010-03-13 | H57: 234000 | I57: 0.05 | J57: 222300 | K57: 3 | L57: =K57*H57*(1-I57) -> 666900
A58: 2015-03-21 | B58: 서울지점 | C58: 여성화 | D58: 정장구두 | E58: 토오픈힐 슈즈 | F58: 240 | G58: 2012-10-23 | H58: 39800 | I58: 0.2 | J58: 31840 | K58: 45 | L58: =K58*H58*(1-I58) -> 1432800
A59: 2015-03-22 | B59: 울산지점 | C59: 남성화 | D59: 로퍼 | E59: 천연소가죽 로퍼 | F59: 270 | G59: 2010-08-12 | H59: 178000 | I59: 0.2 | J59: 142400 | K59: 4 | L59: =K59*H59*(1-I59) -> 569600
A60: 2015-03-23 | B60: 경기지점 | C60: 여성화 | D60: 샌들 | E60: 오픈 펌프스 샌들 | F60: 230 | G60: 2009-03-05 | H60: 118000 | I60: 0.3 | J60: 82600 | K60: 10 | L60: =K60*H60*(1-I60) -> 826000
A61: 2015-03-24 | B61: 서울지점 | C61: 여성화 | D61: 정장구두 | E61: 웨지힐 베이직슈즈 | F61: 235 | G61: 2011-10-28 | H61: 65400 | I61: 0.03 | J61: 63438 | K61: 10 | L61: =K61*H61*(1-I61) -> 634380
A62: 2015-03-24 | B62: 광주지점 | C62: 여성화 | D62: 정장구두 | E62: 웨지힐 베이직슈즈 | F62: 225 | G62: 2011-11-01 | H62: 65400 | I62: 0 | J62: 65400 | K62: 6 | L62: =K62*H62*(1-I62) -> 392400
A63: 2015-03-27 | B63: 서울지점 | C63: 남성화 | D63: 정장구두 | E63: 메탈버틀 슬립온 | F63: 290 | G63: 2010-02-26 | H63: 215000 | I63: 0.03 | J63: 208550 | K63: 2 | L63: =K63*H63*(1-I63) -> 417100
A64: 2015-03-28 | B64: 부산지점 | C64: 남성화 | D64: 정장구두 | E64: 메탈버틀 슬립온 | F64: 290 | G64: 2010-02-26 | H64: 215000 | I64: 0.03 | J64: 208550 | K64: 2 | L64: =K64*H64*(1-I64) -> 417100
A65: 2015-03-28 | B65: 부산지점 | C65: 남성화 | D65: 샌들 | E65: 스포츠 샌들 | F65: 260 | G65: 2012-05-22 | H65: 98200 | I65: 0.2 | J65: 78560 | K65: 2 | L65: =K65*H65*(1-I65) -> 157120
A66: 2015-03-30 | B66: 서울지점 | C66: 여성화 | D66: 정장구두 | E66: 웨지힐 베이직슈즈 | F66: 225 | G66: 2011-11-01 | H66: 65400 | I66: 0 | J66: 65400 | K66: 5 | L66: =K66*H66*(1-I66) -> 327000
A67: 2015-03-30 | B67: 울산지점 | C67: 여성화 | D67: 플렛슈즈 | E67: 보석장식 옆주름 슈즈 | F67: 225 | G67: 2010-06-07 | H67: 56000 | I67: 0.3 | J67: 39200 | K67: 7 | L67: =K67*H67*(1-I67) -> 274400
A68: 2015-04-02 | B68: 광주지점 | C68: 여성화 | D68: 부츠 | E68: 소호 버클 부츠 | F68: 245 | G68: 2011-08-02 | H68: 64000 | I68: 0.1 | J68: 57600 | K68: 7 | L68: =K68*H68*(1-I68) -> 403200
A69: 2015-04-02 | B69: 광주지점 | C69: 남성화 | D69: 부츠 | E69: 벨트 장식 워커 | F69: 260 | G69: 2011-12-04 | H69: 168200 | I69: 0.1 | J69: =H69*(1-I69) -> 151380 | K69: 1 | L69: 151380
A70: 2015-04-05 | B70: 광주지점 | C70: 남성화 | D70: 정장구두 | E70: 크로커 콤비 트랜디 | F70: 270 | G70: 2012-08-15 | H70: 184000 | I70: 0.2 | J70: 147200 | K70: 7 | L70: 1030400
A71: 2015-04-05 | B71: 광주지점 | C71: 남성화 | D71: 스니커즈 | E71: 프리뉴 화이트 스니커즈 | F71: 280 | G71: 2010-01-03 | H71: 174000 | I71: 0 | J71: 174000 | K71: 2 | L71: 348000
A72: 2015-04-08 | B72: 광주지점 | C72: 남성화 | D72: 정장구두 | E72: 토 포인트 옥스포드 | F72: 285 | G72: 2010-06-07 | H72: 156000 | I72: 0.3 | J72: 109200 | K72: 5 | L72: 546000
A73: 2015-04-11 | B73: 광주지점 | C73: 남성화 | D73: 스니커즈 | E73: 프레미엄 패션화 | F73: 265 | G73: 2010-01-03 | H73: 234000 | I73: 0 | J73: 234000 | K73: 5 | L73: 1170000
A74: 2015-04-11 | B74: 대구지점 | C74: 남성화 | D74: 로퍼 | E74: 천연소가죽 로퍼 | F74: 275 | G74: 2009-05-05 | H74: 178000 | I74: 0.2 | J74: 142400 | K74: 7 | L74: 996800
A75: 2015-04-14 | B75: 광주지점 | C75: 여성화 | D75: 로퍼 | E75: 토오픈 캐쥬얼 로퍼 | F75: 235 | G75: 2011-03-05 | H75: 134000 | I75: 0.1 | J75: 120600 | K75: 1 | L75: 120600
A76: 2015-04-17 | B76: 광주지점 | C76: 남성화 | D76: 정장구두 | E76: 토 포인트 옥스포드 | F76: 290 | G76: 2011-04-05 | H76: 156000 | I76: 0.05 | J76: 148200 | K76: 4 | L76: 592800
A77: 2015-04-20 | B77: 광주지점 | C77: 남성화 | D77: 정장구두 | E77: 메탈버틀 슬립온 | F77: 270 | G77: 2010-05-27 | H77: 215000 | I77: 0.05 | J77: 204250 | K77: 5 | L77: 1021250
A78: 2015-04-20 | B78: 대전지점 | C78: 남성화 | D78: 정장구두 | E78: 메탈버틀 슬립온 | F78: 290 | G78: 2010-02-26 | H78: 215000 | I78: 0.03 | J78: 208550 | K78: 2 | L78: 417100
A79: 2015-04-21 | B79: 서울지점 | C79: 여성화 | D79: 샌들 | E79: 오픈 펌프스 샌들 | F79: 230 | G79: 2009-03-05 | H79: 118000 | I79: 0.3 | J79: 82600 | K79: 10 | L79: 826000
A80: 2015-04-23 | B80: 대전지점 | C80: 여성화 | D80: 부츠 | E80: 소호 버클 부츠 | F80: 255 | G80: 2011-08-02 | H80: 64000 | I80: 0.1 | J80: 57600 | K80: 1 | L80: 57600
A81: 2015-04-24 | B81: 광주지점 | C81: 여성화 | D81: 정장구두 | E81: 웨지힐 베이직슈즈 | F81: 225 | G81: 2011-11-01 | H81: 65400 | I81: 0 | J81: 65400 | K81: 6 | L81: 392400
A82: 2015-04-25 | B82: 대전지점 | C82: 남성화 | D82: 샌들 | E82: 스포츠 샌들 | F82: 270 | G82: 2011-07-23 | H82: 98200 | I82: 0.2 | J82: 78560 | K82: 8 | L82: 628480
A83: 2015-04-26 | B83: 대전지점 | C83: 남성화 | D83: 정장구두 | E83: 크로커 콤비 트랜디 | F83: 260 | G83: 2012-08-15 | H83: 184000 | I83: 0.2 | J83: 147200 | K83: 1 | L83: 147200
A84: 2015-04-28 | B84: 광주지점 | C84: 여성화 | D84: 플렛슈즈 | E84: 골지 리본 코사지 슈즈 | F84: 230 | G84: 2010-03-02 | H84: 79000 | I84: 0.2 | J84: 63200 | K84: 5 | L84: 316000
A85: 2015-04-29 | B85: 대전지점 | C85: 남성화 | D85: 정장구두 | E85: 토 포인트 옥스포드 | F85: 290 | G85: 2010-06-07 | H85: 156000 | I85: 0.3 | J85: 109200 | K85: 1 | L85: 109200
A86: 2015-05-01 | B86: 서울지점 | C86: 남성화 | D86: 로퍼 | E86: 천연소가죽 로퍼 | F86: 290 | G86: 2012-01-23 | H86: 178000 | I86: 0.2 | J86: 142400 | K86: 8 | L86: 1139200
A87: 2015-05-02 | B87: 대전지점 | C87: 남성화 | D87: 스니커즈 | E87: 프레미엄 패션화 | F87: 280 | G87: 2010-01-03 | H87: 234000 | I87: 0 | J87: 234000 | K87: 1 | L87: 234000
A88: 2015-05-02 | B88: 대전지점 | C88: 여성화 | D88: 정장구두 | E88: 웨지힐 베이직슈즈 | F88: 225 | G88: 2011-11-01 | H88: 65400 | I88: 0 | J88: 65400 | K88: 6 | L88: 392400
A89: 2015-05-02 | B89: 부산지점 | C89: 남성화 | D89: 스니커즈 | E89: 프리뉴 화이트 스니커즈 | F89: 280 | G89: 2010-01-03 | H89: 174000 | I89: 0 | J89: 174000 | K89: 2 | L89: 348000
A90: 2015-05-02 | B90: 대전지점 | C90: 여성화 | D90: 부츠 | E90: 웨지힐 패션 롱 레인부츠 | F90: 245 | G90: 2011-08-02 | H90: 94000 | I90: 0.1 | J90: 84600 | K90: 5 | L90: 423000
A91: 2015-05-05 | B91: 대전지점 | C91: 여성화 | D91: 로퍼 | E91: 토오픈 캐쥬얼 로퍼 | F91: 250 | G91: 2011-03-05 | H91: 134000 | I91: 0.1 | J91: 120600 | K91: 1 | L91: 120600
A92: 2015-05-08 | B92: 대전지점 | C92: 남성화 | D92: 정장구두 | E92: 토 포인트 옥스포드 | F92: 265 | G92: 2011-04-05 | H92: 156000 | I92: 0.05 | J92: 148200 | K92: 1 | L92: 148200
A93: 2015-05-11 | B93: 대전지점 | C93: 남성화 | D93: 정장구두 | E93: 메탈버틀 슬립온 | F93: 270 | G93: 2010-05-27 | H93: 215000 | I93: 0.05 | J93: 204250 | K93: 1 | L93: 204250
A94: 2015-05-14 | B94: 울산지점 | C94: 남성화 | D94: 정장구두 | E94: 메탈버틀 슬립온 | F94: 275 | G94: 2012-05-12 | H94: 215000 | I94: 0.3 | J94: 150500 | K94: 4 | L94: 602000
A95: 2015-05-17 | B95: 울산지점 | C95: 남성화 | D95: 스니커즈 | E95: 프레미엄 패션화 | F95: 290 | G95: 2010-01-03 | H95: 234000 | I95: 0.05 | J95: 222300 | K95: 5 | L95: 1111500
A96: 2015-05-17 | B96: 대구지점 | C96: 여성화 | D96: 정장구두 | E96: 웨지힐 베이직슈즈 | F96: 225 | G96: 2011-11-01 | H96: 65400 | I96: 0 | J96: 65400 | K96: 7 | L96: 457800
A97: 2015-05-20 | B97: 울산지점 | C97: 남성화 | D97: 로퍼 | E97: 천연소가죽 로퍼 | F97: 260 | G97: 2012-08-13 | H97: 178000 | I97: 0.2 | J97: 142400 | K97: 2 | L97: 284800
A98: 2015-05-20 | B98: 울산지점 | C98: 여성화 | D98: 샌들 | E98: 오픈 펌프스 샌들 | F98: 230 | G98: 2009-03-05 | H98: 118000 | I98: 0.3 | J98: 82600 | K98: 10 | L98: 826000
A99: 2015-05-21 | B99: 광주지점 | C99: 남성화 | D99: 로퍼 | E99: 천연소가죽 로퍼 | F99: 280 | G99: 2011-12-04 | H99: 178000 | I99: 0.2 | J99: 142400 | K99: 1 | L99: 142400
A100: 2015-05-21 | B100: 대전지점 | C100: 남성화 | D100: 정장구두 | E100: 메탈버틀 슬립온 | F100: 290 | G100: 2010-02-26 | H100: 215000 | I100: 0.03 | J100: 208550 | K100: 2 | L100: 417100
A101: 2015-05-23 | B101: 울산지점 | C101: 여성화 | D101: 샌들 | E101: 오픈 펌프스 샌들 | F101: 225 | G101: 2009-07-10 | H101: 118000 | I101: 0.3 | J101: 82600 | K101: 1 | L101: 82600
A102: 2015-05-23 | B102: 대전지점 | C102: 남성화 | D102: 샌들 | E102: 스포츠 샌들 | F102: 225 | G102: 2011-03-05 | H102: 98200 | I102: 0.1 | J102: 88380 | K102: 1 | L102: 88380
A103: 2015-05-26 | B103: 울산지점 | C103: 남성화 | D103: 정장구두 | E103: 토 포인트 옥스포드 | F103: 270 | G103: 2010-11-17 | H103: 156000 | I103: 0.05 | J103: 148200 | K103: 5 | L103: 741000
A104: 2015-05-26 | B104: 경기지점 | C104: 여성화 | D104: 부츠 | E104: 웨지힐 패션 롱 레인부츠 | F104: 250 | G104: 2011-08-02 | H104: 94000 | I104: 0.1 | J104: 84600 | K104: 10 | L104: 846000
A105: 2015-05-27 | B105: 광주지점 | C105: 여성화 | D105: 플렛슈즈 | E105: 보석장식 옆주름 슈즈 | F105: 225 | G105: 2010-06-07 | H105: 56000 | I105: 0.3 | J105: 39200 | K105: 5 | L105: 196000
A106: 2015-05-29 | B106: 울산지점 | C106: 남성화 | D106: 정장구두 | E106: 크로커 콤비 트랜디 | F106: 285 | G106: 2011-05-02 | H106: 184000 | I106: 0.05 | J106: 174800 | K106: 4 | L106: 699200
A107: 2015-05-29 | B107: 대전지점 | C107: 남성화 | D107: 스니커즈 | E107: 프리뉴 화이트 스니커즈 | F107: 280 | G107: 2010-01-03 | H107: 174000 | I107: 0 | J107: 174000 | K107: 2 | L107: 348000
A108: 2015-06-01 | B108: 울산지점 | C108: 남성화 | D108: 스니커즈 | E108: 캐주얼 캔버스화 | F108: 275 | G108: 2011-05-02 | H108: 87000 | I108: 0.13 | J108: 75690 | K108: 6 | L108: 454140
A109: 2015-06-04 | B109: 경기지점 | C109: 남성화 | D109: 로퍼 | E109: 천연소가죽 로퍼 | F109: 260 | G109: 2011-03-05 | H109: 178000 | I109: 0.2 | J109: 142400 | K109: 5 | L109: 712000
A110: 2015-06-07 | B110: 울산지점 | C110: 남성화 | D110: 로퍼 | E110: 천연소가죽 로퍼 | F110: 270 | G110: 2010-08-12 | H110: 178000 | I110: 0.2 | J110: 142400 | K110: 4 | L110: 569600
A111: 2015-06-10 | B111: 대구지점 | C111: 남성화 | D111: 로퍼 | E111: 천연소가죽 로퍼 | F111: 275 | G111: 2009-05-05 | H111: 178000 | I111: 0.2 | J111: 142400 | K111: 7 | L111: 996800
A112: 2015-06-10 | B112: 부산지점 | C112: 남성화 | D112: 로퍼 | E112: 천연소가죽 로퍼 | F112: 260 | G112: 2012-05-22 | H112: 178000 | I112: 0.2 | J112: 142400 | K112: 2 | L112: 284800
A113: 2015-06-13 | B113: 서울지점 | C113: 남성화 | D113: 로퍼 | E113: 천연소가죽 로퍼 | F113: 290 | G113: 2012-01-23 | H113: 178000 | I113: 0.2 | J113: 142400 | K113: 8 | L113: 1139200
A114: 2015-06-13 | B114: 경기지점 | C114: 남성화 | D114: 정장구두 | E114: 메탈버틀 슬립온 | F114: 290 | G114: 2010-02-26 | H114: 215000 | I114: 0.03 | J114: 208550 | K114: 2 | L114: 417100
A115: 2015-06-16 | B115: 광주지점 | C115: 남성화 | D115: 로퍼 | E115: 천연소가죽 로퍼 | F115: 280 | G115: 2011-12-04 | H115: 178000 | I115: 0.2 | J115: 142400 | K115: 1 | L115: 142400
A116: 2015-06-17 | B116: 대구지점 | C116: 여성화 | D116: 정장구두 | E116: 웨지힐 베이직슈즈 | F116: 225 | G116: 2011-11-01 | H116: 65400 | I116: 0 | J116: 65400 | K116: 7 | L116: 457800
A117: 2015-06-18 | B117: 광주지점 | C117: 여성화 | D117: 샌들 | E117: 오픈 펌프스 샌들 | F117: 230 | G117: 2009-03-05 | H117: 118000 | I117: 0.3 | J117: 82600 | K117: 10 | L117: 826000
A118: 2015-06-19 | B118: 부산지점 | C118: 남성화 | D118: 로퍼 | E118: 천연소가죽 로퍼 | F118: 260 | G118: 2012-05-22 | H118: 178000 | I118: 0.2 | J118: 142400 | K118: 2 | L118: 284800
A119: 2015-06-19 | B119: 서울지점 | C119: 여성화 | D119: 부츠 | E119: 웨지힐 패션 롱 레인부츠 | F119: 255 | G119: 2011-08-02 | H119: 94000 | I119: 0.1 | J119: 84600 | K119: 12 | L119: 1015200
A120: 2015-06-20 | B120: 경기지점 | C120: 남성화 | D120: 샌들 | E120: 스포츠 샌들 | F120: 230 | G120: 2010-08-12 | H120: 98200 | I120: 0.1 | J120: 88380 | K120: 1 | L120: 88380
A121: 2015-06-22 | B121: 대전지점 | C121: 남성화 | D121: 로퍼 | E121: 천연소가죽 로퍼 | F121: 270 | G121: 2011-07-23 | H121: 178000 | I121: 0.2 | J121: 142400 | K121: 8 | L121: 1139200
A122: 2015-06-25 | B122: 대전지점 | C122: 여성화 | D122: 로퍼 | E122: 토오픈 캐쥬얼 로퍼 | F122: 225 | G122: 2011-03-05 | H122: 134000 | I122: 0.1 | J122: 120600 | K122: 1 | L122: 120600
A123: 2015-06-25 | B123: 서울지점 | C123: 여성화 | D123: 플렛슈즈 | E123: 골지 리본 코사지 슈즈 | F123: 230 | G123: 2010-03-02 | H123: 79000 | I123: 0.2 | J123: 63200 | K123: 5 | L123: 316000
A124: 2015-06-25 | B124: 대전지점 | C124: 남성화 | D124: 스니커즈 | E124: 프리뉴 화이트 스니커즈 | F124: 280 | G124: 2010-01-03 | H124: 174000 | I124: 0 | J124: 174000 | K124: 6 | L124: 1044000
A125: 2015-06-28 | B125: 경기지점 | C125: 여성화 | D125: 로퍼 | E125: 토오픈 캐쥬얼 로퍼 | F125: 230 | G125: 2010-08-12 | H125: 134000 | I125: 0.1 | J125: 120600 | K125: 1 | L125: 120600
A126: 2015-06-30 | B126: 대전지점 | C126: 남성화 | D126: 로퍼 | E126: 천연소가죽 로퍼 | F126: 290 | G126: 2012-01-23 | H126: 178000 | I126: 0.2 | J126: 142400 | K126: 8 | L126: 1139200
A127: 2015-07-01 | B127: 서울지점 | C127: 여성화 | D127: 로퍼 | E127: 토오픈 캐쥬얼 로퍼 | F127: 250 | G127: 2009-05-05 | H127: 134000 | I127: 0.1 | J127: 120600 | K127: 1 | L127: 120600
A128: 2015-07-04 | B128: 울산지점 | C128: 여성화 | D128: 로퍼 | E128: 토오픈 캐쥬얼 로퍼 | F128: 230 | G128: 2012-01-23 | H128: 134000 | I128: 0.1 | J128: 120600 | K128: 1 | L128: 120600
A129: 2015-07-07 | B129: 광주지점 | C129: 여성화 | D129: 로퍼 | E129: 토오픈 캐쥬얼 로퍼 | F129: 260 | G129: 2011-12-04 | H129: 134000 | I129: 0.1 | J129: 120600 | K129: 1 | L129: 120600
A130: 2015-07-10 | B130: 서울지점 | C130: 남성화 | D130: 샌들 | E130: 스포츠 샌들 | F130: 290 | G130: 2012-01-23 | H130: 98200 | I130: 0.2 | J130: 78560 | K130: 8 | L130: 628480
A131: 2015-07-10 | B131: 경기지점 | C131: 여성화 | D131: 정장구두 | E131: 웨지힐 베이직슈즈 | F131: 225 | G131: 2011-11-01 | H131: 65400 | I131: 0 | J131: 65400 | K131: 8 | L131: 523200
A132: 2015-07-13 | B132: 광주지점 | C132: 남성화 | D132: 샌들 | E132: 스포츠 샌들 | F132: 280 | G132: 2011-12-04 | H132: 98200 | I132: 0.2 | J132: 78560 | K132: 1 | L132: =K132*H132*(1-I132) -> 78560
A133: 2015-07-13 | B133: 울산지점 | C133: 여성화 | D133: 부츠 | E133: 웨지힐 패션 롱 레인부츠 | F133: 235 | G133: 2011-08-02 | H133: 94000 | I133: 0.1 | J133: =H133*(1-I133) -> 84600 | K133: 5 | L133: 423000
A134: 2015-07-14 | B134: 경기지점 | C134: 남성화 | D134: 정장구두 | E134: 메탈버틀 슬립온 | F134: 290 | G134: 2010-02-26 | H134: 215000 | I134: 0.03 | J134: 208550 | K134: 2 | L134: 417100
A135: 2015-07-16 | B135: 부산지점 | C135: 남성화 | D135: 샌들 | E135: 스포츠 샌들 | F135: 260 | G135: 2012-05-22 | H135: 98200 | I135: 0.2 | J135: 78560 | K135: 2 | L135: 157120
A136: 2015-07-17 | B136: 광주지점 | C136: 여성화 | D136: 샌들 | E136: 오픈 펌프스 샌들 | F136: 230 | G136: 2009-03-05 | H136: 118000 | I136: 0.3 | J136: 82600 | K136: 10 | L136: 826000
A137: 2015-07-18 | B137: 서울지점 | C137: 남성화 | D137: 샌들 | E137: 스포츠 샌들 | F137: 250 | G137: 2009-05-05 | H137: 98200 | I137: 0.1 | J137: 88380 | K137: 1 | L137: 88380
A138: 2015-07-19 | B138: 대전지점 | C138: 남성화 | D138: 샌들 | E138: 스포츠 샌들 | F138: 270 | G138: 2011-07-23 | H138: 98200 | I138: 0.2 | J138: 78560 | K138: 8 | L138: 628480
A139: 2015-07-20 | B139: 대전지점 | C139: 남성화 | D139: 로퍼 | E139: 천연소가죽 로퍼 | F139: 280 | G139: 2011-12-04 | H139: 178000 | I139: 0.2 | J139: 142400 | K139: 1 | L139: 142400
A140: 2015-07-20 | B140: 울산지점 | C140: 여성화 | D140: 로퍼 | E140: 토오픈 캐쥬얼 로퍼 | F140: 225 | G140: 2011-03-05 | H140: 134000 | I140: 0.1 | J140: 120600 | K140: 1 | L140: 120600
A141: 2015-07-22 | B141: 대전지점 | C141: 남성화 | D141: 샌들 | E141: 스포츠 샌들 | F141: 225 | G141: 2011-03-05 | H141: 98200 | I141: 0.1 | J141: 88380 | K141: 1 | L141: 88380
A142: 2015-07-22 | B142: 경기지점 | C142: 남성화 | D142: 스니커즈 | E142: 프리뉴 화이트 스니커즈 | F142: 280 | G142: 2010-01-03 | H142: 174000 | I142: 0 | J142: 174000 | K142: 6 | L142: 1044000
A143: 2015-07-23 | B143: 경기지점 | C143: 여성화 | D143: 로퍼 | E143: 토오픈 캐쥬얼 로퍼 | F143: 230 | G143: 2010-08-12 | H143: 134000 | I143: 0.1 | J143: 120600 | K143: 1 | L143: 120600
A144: 2015-07-24 | B144: 광주지점 | C144: 여성화 | D144: 플렛슈즈 | E144: 보석장식 옆주름 슈즈 | F144: 225 | G144: 2010-06-07 | H144: 56000 | I144: 0.3 | J144: 39200 | K144: 10 | L144: 392000
A145: 2015-07-25 | B145: 경기지점 | C145: 남성화 | D145: 샌들 | E145: 스포츠 샌들 | F145: 230 | G145: 2010-08-12 | H145: 98200 | I145: 0.1 | J145: 88380 | K145: 1 | L145: 88380
A146: 2015-07-28 | B146: 서울지점 | C146: 남성화 | D146: 샌들 | E146: 스포츠 샌들 | F146: 250 | G146: 2009-05-05 | H146: 98200 | I146: 0.1 | J146: 88380 | K146: 1 | L146: 88380
A147: 2015-07-31 | B147: 울산지점 | C147: 남성화 | D147: 샌들 | E147: 스포츠 샌들 | F147: 230 | G147: 2012-01-23 | H147: 98200 | I147: 0.1 | J147: 88380 | K147: 1 | L147: 88380
A148: 2015-08-03 | B148: 광주지점 | C148: 남성화 | D148: 샌들 | E148: 스포츠 샌들 | F148: 260 | G148: 2011-12-04 | H148: 98200 | I148: 0.1 | J148: 88380 | K148: 1 | L148: 88380
A149: 2015-08-06 | B149: 광주지점 | C149: 남성화 | D149: 샌들 | E149: 스포츠 샌들 | F149: 265 | G149: 2011-02-02 | H149: 98200 | I149: 0.1 | J149: 88380 | K149: 1 | L149: 88380
A150: 2015-08-06 | B150: 서울지점 | C150: 남성화 | D150: 정장구두 | E150: 메탈버틀 슬립온 | F150: 290 | G150: 2010-02-26 | H150: 215000 | I150: 0.03 | J150: 208550 | K150: 2 | L150: 417100
A151: 2015-08-06 | B151: 광주지점 | C151: 여성화 | D151: 부츠 | E151: 웨지힐 패션 롱 레인부츠 | F151: 240 | G151: 2011-08-02 | H151: 94000 | I151: 0.1 | J151: 84600 | K151: 5 | L151: 423000
A152: 2015-08-10 | B152: 경기지점 | C152: 여성화 | D152: 정장구두 | E152: 웨지힐 베이직슈즈 | F152: 225 | G152: 2011-11-01 | H152: 65400 | I152: 0 | J152: 65400 | K152: 8 | L152: 523200
A153: 2015-08-15 | B153: 울산지점 | C153: 남성화 | D153: 샌들 | E153: 스포츠 샌들 | F153: 230 | G153: 2012-01-23 | H153: 98200 | I153: 0.1 | J153: 88380 | K153: 1 | L153: 88380
A154: 2015-08-15 | B154: 서울지점 | C154: 여성화 | D154: 샌들 | E154: 오픈 펌프스 샌들 | F154: 230 | G154: 2009-03-05 | H154: 118000 | I154: 0.3 | J154: 82600 | K154: 10 | L154: 826000
A155: 2015-08-18 | B155: 서울지점 | C155: 남성화 | D155: 스니커즈 | E155: 프리뉴 화이트 스니커즈 | F155: 280 | G155: 2010-01-03 | H155: 174000 | I155: 0 | J155: 174000 | K155: 6 | L155: 1044000
A156: 2015-08-19 | B156: 경기지점 | C156: 남성화 | D156: 로퍼 | E156: 천연소가죽 로퍼 | F156: 260 | G156: 2012-05-22 | H156: 178000 | I156: 0.2 | J156: 142400 | K156: 2 | L156: 284800
A157: 2015-08-21 | B157: 서울지점 | C157: 여성화 | D157: 로퍼 | E157: 토오픈 캐쥬얼 로퍼 | F157: 250 | G157: 2009-05-05 | H157: 134000 | I157: 0.1 | J157: 120600 | K157: 1 | L157: 120600
A158: 2015-08-22 | B158: 서울지점 | C158: 여성화 | D158: 플렛슈즈 | E158: 골지 리본 코사지 슈즈 | F158: 230 | G158: 2010-03-02 | H158: 79000 | I158: 0.2 | J158: 63200 | K158: 20 | L158: 1264000
A159: 2015-08-30 | B159: 울산지점 | C159: 남성화 | D159: 부츠 | E159: 벨트 장식 워커 | F159: 230 | G159: 2012-01-23 | H159: 168200 | I159: 0.1 | J159: 151380 | K159: 1 | L159: 151380
A160: 2015-08-30 | B160: 광주지점 | C160: 여성화 | D160: 부츠 | E160: 웨지힐 패션 롱 레인부츠 | F160: 245 | G160: 2011-08-02 | H160: 94000 | I160: 0.1 | J160: 84600 | K160: 9 | L160: 761400
A161: 2015-09-02 | B161: 울산지점 | C161: 여성화 | D161: 정장구두 | E161: 웨지힐 베이직슈즈 | F161: 225 | G161: 2011-11-01 | H161: 65400 | I161: 0 | J161: 65400 | K161: 5 | L161: 327000
A162: 2015-09-05 | B162: 광주지점 | C162: 남성화 | D162: 정장구두 | E162: 메탈버틀 슬립온 | F162: 270 | G162: 2010-05-27 | H162: 215000 | I162: 0.05 | J162: 204250 | K162: 5 | L162: 1021250
A163: 2015-09-06 | B163: 서울지점 | C163: 남성화 | D163: 정장구두 | E163: 메탈버틀 슬립온 | F163: 290 | G163: 2010-02-26 | H163: 215000 | I163: 0.03 | J163: 208550 | K163: 2 | L163: 417100
A164: 2015-09-08 | B164: 대전지점 | C164: 여성화 | D164: 부츠 | E164: 소호 버클 부츠 | F164: 255 | G164: 2011-08-02 | H164: 64000 | I164: 0.1 | J164: 57600 | K164: 1 | L164: 57600
A165: 2015-09-11 | B165: 대전지점 | C165: 남성화 | D165: 정장구두 | E165: 크로커 콤비 트랜디 | F165: 260 | G165: 2012-08-15 | H165: 184000 | I165: 0.2 | J165: 147200 | K165: 1 | L165: 147200
A166: 2015-09-12 | B166: 광주지점 | C166: 남성화 | D166: 샌들 | E166: 스포츠 샌들 | F166: 260 | G166: 2011-12-04 | H166: 98200 | I166: 0.1 | J166: 88380 | K166: 1 | L166: 88380
A167: 2015-09-13 | B167: 울산지점 | C167: 여성화 | D167: 샌들 | E167: 오픈 펌프스 샌들 | F167: 230 | G167: 2009-03-05 | H167: 118000 | I167: 0.3 | J167: 82600 | K167: 10 | L167: 826000
A168: 2015-09-14 | B168: 대전지점 | C168: 남성화 | D168: 정장구두 | E168: 토 포인트 옥스포드 | F168: 290 | G168: 2010-06-07 | H168: 156000 | I168: 0.3 | J168: 109200 | K168: 1 | L168: 109200
A169: 2015-09-14 | B169: 울산지점 | C169: 남성화 | D169: 스니커즈 | E169: 프리뉴 화이트 스니커즈 | F169: 280 | G169: 2010-01-03 | H169: 174000 | I169: 0 | J169: 174000 | K169: 4 | L169: 696000
A170: 2015-09-17 | B170: 대전지점 | C170: 남성화 | D170: 스니커즈 | E170: 프레미엄 패션화 | F170: 280 | G170: 2010-01-03 | H170: 234000 | I170: 0 | J170: 234000 | K170: 1 | L170: 234000
A171: 2015-09-18 | B171: 서울지점 | C171: 남성화 | D171: 로퍼 | E171: 천연소가죽 로퍼 | F171: 270 | G171: 2011-07-23 | H171: 178000 | I171: 0.2 | J171: 142400 | K171: 8 | L171: 1139200
A172: 2015-09-19 | B172: 울산지점 | C172: 여성화 | D172: 로퍼 | E172: 토오픈 캐쥬얼 로퍼 | F172: 230 | G172: 2012-01-23 | H172: 134000 | I172: 0.1 | J172: 120600 | K172: 1 | L172: 120600
A173: 2015-09-20 | B173: 대전지점 | C173: 여성화 | D173: 로퍼 | E173: 토오픈 캐쥬얼 로퍼 | F173: 250 | G173: 2011-03-05 | H173: 134000 | I173: 0.1 | J173: 120600 | K173: 1 | L173: 120600
A174: 2015-09-20 | B174: 울산지점 | C174: 여성화 | D174: 플렛슈즈 | E174: 보석장식 옆주름 슈즈 | F174: 225 | G174: 2010-06-07 | H174: 56000 | I174: 0.3 | J174: 39200 | K174: 5 | L174: 196000
A175: 2015-09-23 | B175: 대전지점 | C175: 남성화 | D175: 정장구두 | E175: 토 포인트 옥스포드 | F175: 265 | G175: 2011-04-05 | H175: 156000 | I175: 0.05 | J175: 148200 | K175: 1 | L175: 148200
A176: 2015-09-23 | B176: 광주지점 | C176: 여성화 | D176: 부츠 | E176: 웨지힐 패션 롱 레인부츠 | F176: 245 | G176: 2011-08-02 | H176: 94000 | I176: 0.1 | J176: 84600 | K176: 10 | L176: 846000
A177: 2015-09-26 | B177: 대전지점 | C177: 남성화 | D177: 정장구두 | E177: 메탈버틀 슬립온 | F177: 270 | G177: 2010-05-27 | H177: 215000 | I177: 0.05 | J177: 204250 | K177: 1 | L177: 204250
A178: 2015-09-27 | B178: 서울지점 | C178: 남성화 | D178: 부츠 | E178: 벨트 장식 워커 | F178: 250 | G178: 2009-05-05 | H178: 168200 | I178: 0.1 | J178: 151380 | K178: 1 | L178: 151380
A179: 2015-09-29 | B179: 울산지점 | C179: 남성화 | D179: 정장구두 | E179: 메탈버틀 슬립온 | F179: 275 | G179: 2012-05-12 | H179: 215000 | I179: 0.3 | J179: 150500 | K179: 4 | L179: 602000
A180: 2015-09-29 | B180: 광주지점 | C180: 남성화 | D180: 정장구두 | E180: 메탈버틀 슬립온 | F180: 290 | G180: 2010-02-26 | H180: 215000 | I180: 0.03 | J180: 208550 | K180: 2 | L180: 417100
A181: 2015-10-02 | B181: 울산지점 | C181: 남성화 | D181: 스니커즈 | E181: 프레미엄 패션화 | F181: 290 | G181: 2010-01-03 | H181: 234000 | I181: 0.05 | J181: 222300 | K181: 5 | L181: 1111500
A182: 2015-10-03 | B182: 울산지점 | C182: 여성화 | D182: 정장구두 | E182: 웨지힐 베이직슈즈 | F182: 225 | G182: 2011-11-01 | H182: 65400 | I182: 0 | J182: 65400 | K182: 5 | L182: 327000
A183: 2015-10-05 | B183: 울산지점 | C183: 남성화 | D183: 로퍼 | E183: 천연소가죽 로퍼 | F183: 260 | G183: 2012-08-13 | H183: 178000 | I183: 0.2 | J183: 142400 | K183: 2 | L183: 284800
A184: 2015-10-08 | B184: 울산지점 | C184: 여성화 | D184: 샌들 | E184: 오픈 펌프스 샌들 | F184: 225 | G184: 2009-07-10 | H184: 118000 | I184: 0.3 | J184: 82600 | K184: 1 | L184: 82600
A185: 2015-10-10 | B185: 광주지점 | C185: 남성화 | D185: 샌들 | E185: 스포츠 샌들 | F185: 265 | G185: 2011-02-02 | H185: 98200 | I185: 0.1 | J185: 88380 | K185: 1 | L185: 88380
A186: 2015-10-11 | B186: 울산지점 | C186: 남성화 | D186: 정장구두 | E186: 토 포인트 옥스포드 | F186: 270 | G186: 2010-11-17 | H186: 156000 | I186: 0.05 | J186: 148200 | K186: 5 | L186: 741000
A187: 2015-10-11 | B187: 광주지점 | C187: 남성화 | D187: 스니커즈 | E187: 프리뉴 화이트 스니커즈 | F187: 280 | G187: 2010-01-03 | H187: 174000 | I187: 0 | J187: 174000 | K187: 4 | L187: 696000
A188: 2015-10-12 | B188: 대전지점 | C188: 여성화 | D188: 샌들 | E188: 오픈 펌프스 샌들 | F188: 230 | G188: 2009-03-05 | H188: 118000 | I188: 0.3 | J188: 82600 | K188: 10 | L188: 826000
A189: 2015-10-14 | B189: 울산지점 | C189: 남성화 | D189: 정장구두 | E189: 크로커 콤비 트랜디 | F189: 285 | G189: 2011-05-02 | H189: 184000 | I189: 0.05 | J189: 174800 | K189: 4 | L189: 699200
A190: 2015-10-17 | B190: 울산지점 | C190: 남성화 | D190: 스니커즈 | E190: 캐주얼 캔버스화 | F190: 275 | G190: 2011-05-02 | H190: 87000 | I190: 0.13 | J190: 75690 | K190: 6 | L190: 454140
A191: 2015-10-18 | B191: 대전지점 | C191: 남성화 | D191: 부츠 | E191: 벨트 장식 워커 | F191: 270 | G191: 2011-07-23 | H191: 168200 | I191: 0.2 | J191: 134560 | K191: 8 | L191: 1076480
A192: 2015-10-18 | B192: 대전지점 | C192: 남성화 | D192: 로퍼 | E192: 천연소가죽 로퍼 | F192: 280 | G192: 2011-12-04 | H192: 178000 | I192: 0.2 | J192: 142400 | K192: 1 | L192: 142400
A193: 2015-10-18 | B193: 광주지점 | C193: 여성화 | D193: 로퍼 | E193: 토오픈 캐쥬얼 로퍼 | F193: 260 | G193: 2011-12-04 | H193: 134000 | I193: 0.1 | J193: 120600 | K193: 1 | L193: 120600
A194: 2015-10-19 | B194: 부산지점 | C194: 여성화 | D194: 플렛슈즈 | E194: 보석장식 옆주름 슈즈 | F194: 225 | G194: 2010-06-07 | H194: 56000 | I194: 0.3 | J194: 39200 | K194: 5 | L194: 196000
A195: 2015-10-21 | B195: 서울지점 | C195: 남성화 | D195: 샌들 | E195: 스포츠 샌들 | F195: 290 | G195: 2012-01-23 | H195: 98200 | I195: 0.2 | J195: 78560 | K195: 8 | L195: 628480
A196: 2015-10-24 | B196: 광주지점 | C196: 남성화 | D196: 샌들 | E196: 스포츠 샌들 | F196: 280 | G196: 2011-12-04 | H196: 98200 | I196: 0.2 | J196: 78560 | K196: 1 | L196: =K196*H196*(1-I196) -> 78560
A197: 2015-10-26 | B197: 부산지점 | C197: 여성화 | D197: 정장구두 | E197: 웨지힐 베이직슈즈 | F197: 225 | G197: 2011-11-01 | H197: 65400 | I197: 0 | J197: =H197*(1-I197) -> 65400 | K197: 7 | L197: 457800
A198: 2015-10-27 | B198: 부산지점 | C198: 남성화 | D198: 샌들 | E198: 스포츠 샌들 | F198: 260 | G198: 2012-05-22 | H198: 98200 | I198: 0.2 | J198: 78560 | K198: 2 | L198: 157120
A199: 2015-10-30 | B199: 대전지점 | C199: 남성화 | D199: 샌들 | E199: 스포츠 샌들 | F199: 270 | G199: 2011-07-23 | H199: 98200 | I199: 0.2 | J199: 78560 | K199: 8 | L199: 628480
A200: 2015-10-30 | B200: 광주지점 | C200: 남성화 | D200: 정장구두 | E200: 메탈버틀 슬립온 | F200: 290 | G200: 2010-02-26 | H200: 215000 | I200: 0.03 | J200: 208550 | K200: 2 | L200: 417100
A201: 2015-11-02 | B201: 대전지점 | C201: 남성화 | D201: 샌들 | E201: 스포츠 샌들 | F201: 225 | G201: 2011-03-05 | H201: 98200 | I201: 0.1 | J201: 88380 | K201: 1 | L201: 88380
... 24 more rows
